[Event "*** Titled Tuesday 3|2 Blitz"]
[Site "Chess.com"]
[Date "2016.05.03"]
[Round "2"]
[White "Badouuu"]
[Black "Blitzstream"]
[Result "0-1"]
[WhiteElo "2008"]
[BlackElo "2410"]
[TimeControl "180+2"]
[EndTime "11:24:57 PDT"]
[Termination "Blitzstream won by checkmate"]

1. e4 {[%clk 0:03:01.9]} 1... d5 {[%clk 0:03:00.9]} 2. exd5 {[%clk 0:03:02.6]}
2... Qxd5 {[%clk 0:03:02.8]} 3. Nc3 {[%clk 0:03:03.6]} 3... Qa5 {[%clk
0:03:02.9]} 4. d4 {[%clk 0:03:04.6]} 4... Nf6 {[%clk 0:03:03.6]} 5. Bc4 {[%clk
0:03:04.4]} 5... Bg4 {[%clk 0:03:04.3]} 6. f3 {[%clk 0:03:04.8]} 6... Bf5 {[%clk
0:03:05.4]} 7. Bd2 {[%clk 0:03:05.8]} 7... Qb6 {[%clk 0:03:04.7]} 8. Nge2 {[%clk
0:03:03.5]} 8... e6 {[%clk 0:03:03.6]} 9. a4 {[%clk 0:02:41.5]} 9... c6 {[%clk
0:02:38.5]} 10. a5 {[%clk 0:02:40.7]} 10... Qc7 {[%clk 0:02:39.6]} 11. Bf4
{[%clk 0:02:40.1]} 11... Bd6 {[%clk 0:02:40.4]} 12. Bxd6 {[%clk 0:02:37.5]}
12... Qxd6 {[%clk 0:02:42.3]} 13. Ng3 {[%clk 0:02:34.8]} 13... Bg6 {[%clk
0:02:42.5]} 14. Nge4 {[%clk 0:02:12.1]} 14... Nxe4 {[%clk 0:02:20.1]} 15. fxe4
{[%clk 0:02:05.9]} 15... e5 {[%clk 0:02:20.7]} 16. d5 {[%clk 0:02:00.7]} 16...
O-O {[%clk 0:02:10.9]} 17. Bd3 {[%clk 0:01:49.4]} 17... Qb4 {[%clk 0:01:32.4]}
18. O-O {[%clk 0:01:38.6]} 18... Qxb2 {[%clk 0:01:22.8]} 19. Qe1 {[%clk
0:01:11.4]} 19... Qb4 {[%clk 0:01:21.2]} 20. Rb1 {[%clk 0:01:07.3]} 20... Qc5+
{[%clk 0:01:12.3]} 21. Kh1 {[%clk 0:01:05.9]} 21... b6 {[%clk 0:01:13.6]} 22.
axb6 {[%clk 0:00:49.5]} 22... axb6 {[%clk 0:01:14.3]} 23. dxc6 {[%clk
0:00:49.9]} 23... Nxc6 {[%clk 0:01:14.3]} 24. Nd5 {[%clk 0:00:51]} 24... Rab8
{[%clk 0:01:07.9]} 25. Rb3 {[%clk 0:00:33]} 25... Nd4 {[%clk 0:01:06.3]} 26. Rc3
{[%clk 0:00:33.9]} 26... Qd6 {[%clk 0:01:01.4]} 27. Rc7 {[%clk 0:00:28.6]} 27...
Kh8 {[%clk 0:01:02]} 28. c3 {[%clk 0:00:24.4]} 28... Ne6 {[%clk 0:01:02]} 29.
Ra7 {[%clk 0:00:24]} 29... Nc5 {[%clk 0:01:02.5]} 30. Qe2 {[%clk 0:00:22.1]}
30... Ra8 {[%clk 0:01:00]} 31. Rxa8 {[%clk 0:00:19.8]} 31... Rxa8 {[%clk
0:01:01.9]} 32. h3 {[%clk 0:00:20.4]} 32... f6 {[%clk 0:00:39.7]} 33. Rb1 {[%clk
0:00:20.8]} 33... Rb8 {[%clk 0:00:33.2]} 34. Bc2 {[%clk 0:00:19.2]} 34... Bf7
{[%clk 0:00:34.1]} 35. Ne3 {[%clk 0:00:18.8]} 35... Be6 {[%clk 0:00:33]} 36. Rd1
{[%clk 0:00:19.5]} 36... Qc6 {[%clk 0:00:33.9]} 37. Nd5 {[%clk 0:00:20.3]} 37...
Bxd5 {[%clk 0:00:33]} 38. exd5 {[%clk 0:00:22.2]} 38... Qd6 {[%clk 0:00:33.9]}
39. Qb5 {[%clk 0:00:21.7]} 39... e4 {[%clk 0:00:32.7]} 40. c4 {[%clk 0:00:21.7]}
40... f5 {[%clk 0:00:33.9]} 41. Rf1 {[%clk 0:00:22.4]} 41... f4 {[%clk
0:00:32.7]} 42. Qb1 {[%clk 0:00:21.8]} 42... Re8 {[%clk 0:00:32.9]} 43. Qc1
{[%clk 0:00:21.8]} 43... e3 {[%clk 0:00:32.7]} 44. Qb1 {[%clk 0:00:23.2]} 44...
g6 {[%clk 0:00:26.6]} 45. Re1 {[%clk 0:00:24.3]} 45... Kg7 {[%clk 0:00:19]} 46.
Bd1 {[%clk 0:00:23.9]} 46... h5 {[%clk 0:00:18.3]} 47. Bf3 {[%clk 0:00:24.5]}
47... Rf8 {[%clk 0:00:18.3]} 48. Qb2+ {[%clk 0:00:24.5]} 48... Qf6 {[%clk
0:00:18.8]} 49. Qb5 {[%clk 0:00:23.8]} 49... Rd8 {[%clk 0:00:20]} 50. Rb1 {[%clk
0:00:24.1]} 50... Rd6 {[%clk 0:00:21.2]} 51. Qe8 {[%clk 0:00:22.2]} 51... Qf7
{[%clk 0:00:18]} 52. Qc8 {[%clk 0:00:22.8]} 52... Qd7 {[%clk 0:00:18.3]} 53. Qb8
{[%clk 0:00:23.2]} 53... Qd8 {[%clk 0:00:18.7]} 54. Qxd8 {[%clk 0:00:22.4]}
54... Rxd8 {[%clk 0:00:19.7]} 55. Rxb6 {[%clk 0:00:24]} 55... Nd3 {[%clk
0:00:19.6]} 56. Rb7+ {[%clk 0:00:22.6]} 56... Kf6 {[%clk 0:00:20.5]} 57. Rb3
{[%clk 0:00:22.8]} 57... Ne5 {[%clk 0:00:21.6]} 58. Kg1 {[%clk 0:00:23.3]} 58...
Nxc4 {[%clk 0:00:22.1]} 59. Rb5 {[%clk 0:00:22.1]} 59... Nd6 {[%clk 0:00:21.6]}
60. Rb6 {[%clk 0:00:23.3]} 60... Ke5 {[%clk 0:00:22.8]} 61. Kf1 {[%clk
0:00:24.8]} 61... Rc8 {[%clk 0:00:23.8]} 62. Ke2 {[%clk 0:00:26.7]} 62... Rc2+
{[%clk 0:00:24.9]} 63. Kd1 {[%clk 0:00:28.4]} 63... Rd2+ {[%clk 0:00:26.2]} 64.
Ke1 {[%clk 0:00:30.1]} 64... Rd4 {[%clk 0:00:24.4]} 65. Rb8 {[%clk 0:00:30.6]}
65... Nf5 {[%clk 0:00:22.7]} 66. Rg8 {[%clk 0:00:31.5]} 66... Kf6 {[%clk
0:00:23.8]} 67. Rf8+ {[%clk 0:00:32.4]} 67... Kg7 {[%clk 0:00:25.1]} 68. Rd8
{[%clk 0:00:33.8]} 68... Rd2 {[%clk 0:00:26.1]} 69. Rd7+ {[%clk 0:00:34.3]}
69... Kf6 {[%clk 0:00:27.2]} 70. Ra7 {[%clk 0:00:34.1]} 70... Nd4 {[%clk
0:00:27.9]} 71. Ra6+ {[%clk 0:00:36]} 71... Kf7 {[%clk 0:00:27.6]} 72. Be4
{[%clk 0:00:37.9]} 72... Nc2+ {[%clk 0:00:26]} 73. Bxc2 {[%clk 0:00:38.3]} 73...
Rxc2 {[%clk 0:00:27.9]} 74. d6 {[%clk 0:00:39.4]} 74... Rd2 {[%clk 0:00:28.7]}
75. Ra7+ {[%clk 0:00:40.1]} 75... Kf6 {[%clk 0:00:29.4]} 76. Ra6 {[%clk
0:00:40.9]} 76... Rxg2 {[%clk 0:00:26.2]} 77. d7+ {[%clk 0:00:40.6]} 77... Ke7
{[%clk 0:00:27.4]} 78. Ra4 {[%clk 0:00:40.7]} 78... f3 {[%clk 0:00:21.2]} 79.
Rd4 {[%clk 0:00:40.2]} 79... Rg1# {[%clk 0:00:21.5]} 0-1

[Event "*** Titled Tuesday 3|2 Blitz"]
[Site "Chess.com"]
[Date "2016.05.03"]
[Round "2"]
[White "bugsbunny444"]
[Black "rasool78"]
[Result "1-0"]
[WhiteElo "2376"]
[BlackElo "2173"]
[TimeControl "180+2"]
[EndTime "11:26:19 PDT"]
[Termination "bugsbunny444 won on time"]

1. Nf3 {[%clk 0:03:01.9]} 1... g6 {[%clk 0:03:00.8]} 2. e4 {[%clk 0:03:02.6]}
2... Bg7 {[%clk 0:03:02.1]} 3. d4 {[%clk 0:03:04.2]} 3... c5 {[%clk 0:03:03.6]}
4. dxc5 {[%clk 0:03:05]} 4... Qa5+ {[%clk 0:03:03.3]} 5. Nc3 {[%clk 0:03:06.4]}
5... Bxc3+ {[%clk 0:03:03.2]} 6. bxc3 {[%clk 0:03:07.4]} 6... Qxc3+ {[%clk
0:03:04.7]} 7. Bd2 {[%clk 0:03:08.1]} 7... Qxc5 {[%clk 0:03:06.2]} 8. Bd3 {[%clk
0:03:01]} 8... Nf6 {[%clk 0:03:06.1]} 9. O-O {[%clk 0:02:58.8]} 9... d6 {[%clk
0:03:07.2]} 10. h3 {[%clk 0:02:43.7]} 10... O-O {[%clk 0:03:07.1]} 11. Rb1
{[%clk 0:02:42]} 11... Nbd7 {[%clk 0:03:04.3]} 12. Re1 {[%clk 0:02:35.9]} 12...
a6 {[%clk 0:03:03.2]} 13. Bb4 {[%clk 0:02:15.4]} 13... Qc7 {[%clk 0:03:01.2]}
14. Qd2 {[%clk 0:01:59.6]} 14... Ne5 {[%clk 0:02:55.5]} 15. Nxe5 {[%clk
0:01:42.1]} 15... dxe5 {[%clk 0:02:56.2]} 16. Ba5 {[%clk 0:01:41.8]} 16... Qc6
{[%clk 0:02:22.3]} 17. Qg5 {[%clk 0:01:33.2]} 17... Qe6 {[%clk 0:01:50.8]} 18.
a3 {[%clk 0:01:12.6]} 18... b5 {[%clk 0:01:49.8]} 19. f3 {[%clk 0:00:53.5]}
19... Bb7 {[%clk 0:01:48.4]} 20. a4 {[%clk 0:00:53.4]} 20... Bc6 {[%clk
0:01:48.4]} 21. Bc3 {[%clk 0:00:48.4]} 21... Nd7 {[%clk 0:01:31.5]} 22. a5
{[%clk 0:00:36.7]} 22... Kg7 {[%clk 0:01:27.1]} 23. Qe3 {[%clk 0:00:29.9]} 23...
f6 {[%clk 0:01:24.2]} 24. Bb4 {[%clk 0:00:28.4]} 24... Rfc8 {[%clk 0:01:14.2]}
25. Rec1 {[%clk 0:00:29.3]} 25... Bb7 {[%clk 0:01:15.2]} 26. Kh2 {[%clk
0:00:27.2]} 26... Kf7 {[%clk 0:01:08.5]} 27. Ba3 {[%clk 0:00:21.1]} 27... Rc7
{[%clk 0:01:06.8]} 28. c4 {[%clk 0:00:20.9]} 28... b4 {[%clk 0:00:32.9]} 29.
Rxb4 {[%clk 0:00:17.5]} 29... Rac8 {[%clk 0:00:29.4]} 30. c5 {[%clk 0:00:14.4]}
30... Kg7 {[%clk 0:00:23.5]} 31. Bc4 {[%clk 0:00:10.6]} 31... Qc6 {[%clk
0:00:08.7]} 32. Bd5 {[%clk 0:00:11.9]} 32... Qxd5 {[%clk 0:00:04.7]} 33. exd5
{[%clk 0:00:13.2]} 33... Bxd5 {[%clk 0:00:06.3]} 34. Rb2 {[%clk 0:00:09.9]}
34... Bc6 {[%clk 0:00:07.8]} 35. Rd2 {[%clk 0:00:08.7]} 35... Nf8 {[%clk
0:00:09.3]} 36. Rb2 {[%clk 0:00:07.6]} 36... Ne6 {[%clk 0:00:10.7]} 37. Rb6
{[%clk 0:00:08.6]} 37... g5 {[%clk 0:00:11.6]} 38. Bb2 {[%clk 0:00:04.8]} 38...
Nf4 {[%clk 0:00:12.2]} 39. Qb3 {[%clk 0:00:04.9]} 39... Bd5 {[%clk 0:00:12.1]}
40. Qb4 {[%clk 0:00:04.7]} 40... Bc6 {[%clk 0:00:13.2]} 41. Rd1 {[%clk 0:00:05]}
41... Nd5 {[%clk 0:00:13.2]} 42. Qb3 {[%clk 0:00:04.4]} 42... Nf4 {[%clk
0:00:11.3]} 43. Rb8 {[%clk 0:00:05.4]} 43... Bb5 {[%clk 0:00:11.3]} 44. Rxc8
{[%clk 0:00:06]} 44... Rxc8 {[%clk 0:00:12.4]} 45. Ba3 {[%clk 0:00:04.5]} 45...
Rc7 {[%clk 0:00:09.1]} 46. Qc2 {[%clk 0:00:03.6]} 46... Ne2 {[%clk 0:00:07.8]}
47. Qd2 {[%clk 0:00:03.1]} 47... Nd4 {[%clk 0:00:08.7]} 48. Qc3 {[%clk
0:00:03.4]} 48... Ne6 {[%clk 0:00:06.8]} 49. Qb3 {[%clk 0:00:04]} 49... Nd4
{[%clk 0:00:07.4]} 50. Rxd4 {[%clk 0:00:04.9]} 50... exd4 {[%clk 0:00:08.8]} 51.
Qd5 {[%clk 0:00:06.3]} 51... d3 {[%clk 0:00:09.9]} 52. Bb2 {[%clk 0:00:06]}
52... Rd7 {[%clk 0:00:10.2]} 53. Qxg5+ {[%clk 0:00:06.8]} 53... Kf7 {[%clk
0:00:10.5]} 54. Qd2 {[%clk 0:00:06.8]} 54... Rd5 {[%clk 0:00:10.6]} 55. Ba3
{[%clk 0:00:07.2]} 55... Rd4 {[%clk 0:00:11.4]} 56. Bb4 {[%clk 0:00:06.8]} 56...
Rc4 {[%clk 0:00:11.4]} 57. Kg3 {[%clk 0:00:06.8]} 57... Rc2 {[%clk 0:00:12]} 58.
Qh6 {[%clk 0:00:07.8]} 58... Rb2 {[%clk 0:00:09.7]} 59. Bd2 {[%clk 0:00:07.9]}
59... Rc2 {[%clk 0:00:07.5]} 60. Qxh7+ {[%clk 0:00:08.6]} 60... Ke8 {[%clk
0:00:08.7]} 61. Qh8+ {[%clk 0:00:07.2]} 61... Kd7 {[%clk 0:00:09.9]} 62. Qh6
{[%clk 0:00:07.4]} 62... Rxc5 {[%clk 0:00:10.6]} 63. Qe3 {[%clk 0:00:07.8]}
63... Re5 {[%clk 0:00:09.6]} 64. Qd4+ {[%clk 0:00:08.2]} 64... Ke6 {[%clk
0:00:10.2]} 65. h4 {[%clk 0:00:06.8]} 65... Re2 {[%clk 0:00:11.4]} 66. Qb4
{[%clk 0:00:06.4]} 66... Kf5 {[%clk 0:00:11.4]} 67. Qg4+ {[%clk 0:00:06]} 67...
Ke5 {[%clk 0:00:12.3]} 68. Qf4+ {[%clk 0:00:05.1]} 68... Ke6 {[%clk 0:00:12.7]}
69. h5 {[%clk 0:00:06.4]} 69... Re5 {[%clk 0:00:07.9]} 70. Qg4+ {[%clk
0:00:05.8]} 70... Kf7 {[%clk 0:00:06.4]} 71. Qg6+ {[%clk 0:00:07]} 71... Ke6
{[%clk 0:00:07.7]} 72. h6 {[%clk 0:00:08.3]} 72... Re2 {[%clk 0:00:05]} 73. h7
{[%clk 0:00:06.3]} 73... Rxd2 {[%clk 0:00:05.7]} 74. h8=Q {[%clk 0:00:07.7]}
74... Re2 {[%clk 0:00:06.9]} 75. Qhg8+ {[%clk 0:00:07.8]} 75... Kd6 {[%clk
0:00:07.9]} 76. Qd8+ {[%clk 0:00:08.3]} 76... Kc5 {[%clk 0:00:09]} 77. Qf5+
{[%clk 0:00:08]} 77... Re5 {[%clk 0:00:08.8]} 78. Qfc8+ {[%clk 0:00:07.4]} 78...
Kb4 {[%clk 0:00:09.5]} 79. Qdc7 {[%clk 0:00:06.8]} 79... Rg5+ {[%clk 0:00:09.1]}
80. Kf2 {[%clk 0:00:07.1]} 80... Re5 {[%clk 0:00:03.2]} 81. Qc3+ {[%clk
0:00:07.5]} 81... Ka4 {[%clk 0:00:03.9]} 82. Qg4+ {[%clk 0:00:06.3]} 1-0

[Event "*** Titled Tuesday 3|2 Blitz"]
[Site "Chess.com"]
[Date "2016.05.03"]
[Round "3"]
[White "GMVladimir_Petkov"]
[Black "chess960now"]
[Result "1-0"]
[WhiteElo "2204"]
[BlackElo "1959"]
[TimeControl "180+2"]
[EndTime "11:30:05 PDT"]
[Termination "GMVladimir_Petkov won by resignation"]

1. d4 {[%clk 0:02:43]} 1... Nf6 {[%clk 0:03:00.3]} 2. c4 {[%clk 0:02:44]} 2...
c5 {[%clk 0:03:01.6]} 3. d5 {[%clk 0:02:44.2]} 3... b5 {[%clk 0:03:02.7]} 4.
cxb5 {[%clk 0:02:45.6]} 4... a6 {[%clk 0:03:03.4]} 5. bxa6 {[%clk 0:02:45.3]}
5... g6 {[%clk 0:03:04.7]} 6. Nc3 {[%clk 0:02:46.6]} 6... Bxa6 {[%clk
0:03:04.9]} 7. e4 {[%clk 0:02:48]} 7... Bxf1 {[%clk 0:03:04.8]} 8. Kxf1 {[%clk
0:02:49.7]} 8... d6 {[%clk 0:03:03.7]} 9. Nf3 {[%clk 0:02:51.2]} 9... Bg7 {[%clk
0:03:04.9]} 10. g3 {[%clk 0:02:52.7]} 10... O-O {[%clk 0:03:05.1]} 11. Kg2
{[%clk 0:02:54.3]} 11... Nbd7 {[%clk 0:02:52.8]} 12. Qe2 {[%clk 0:02:50.6]}
12... Qb6 {[%clk 0:02:16.9]} 13. a4 {[%clk 0:02:44.4]} 13... Rfb8 {[%clk
0:02:04.7]} 14. Nb5 {[%clk 0:02:39.6]} 14... Ng4 {[%clk 0:01:44.4]} 15. Nd2
{[%clk 0:02:38.4]} 15... Ngf6 {[%clk 0:01:28.3]} 16. Nc4 {[%clk 0:02:36.6]}
16... Qa6 {[%clk 0:01:27]} 17. Nc7 {[%clk 0:02:34.1]} 1-0

[Event "*** Titled Tuesday 3|2 Blitz"]
[Site "Chess.com"]
[Date "2016.05.03"]
[Round "3"]
[White "motivated_bishop"]
[Black "Rating-Schmating"]
[Result "1-0"]
[WhiteElo "2292"]
[BlackElo "2247"]
[TimeControl "180+2"]
[EndTime "11:30:20 PDT"]
[Termination "motivated_bishop won by resignation"]

1. d4 {[%clk 0:03:00.8]} 1... e6 {[%clk 0:02:59.6]} 2. c4 {[%clk 0:03:01.4]}
2... Nf6 {[%clk 0:02:59.3]} 3. Nc3 {[%clk 0:02:59.8]} 3... b6 {[%clk 0:03:00.2]}
4. Nf3 {[%clk 0:03:00.2]} 4... Bb7 {[%clk 0:03:00.9]} 5. e3 {[%clk 0:02:51.9]}
5... c5 {[%clk 0:03:01.7]} 6. Bd3 {[%clk 0:02:52.2]} 6... cxd4 {[%clk
0:03:01.9]} 7. exd4 {[%clk 0:02:52.9]} 7... d6 {[%clk 0:03:02.8]} 8. O-O {[%clk
0:02:53.8]} 8... a6 {[%clk 0:03:03.7]} 9. Re1 {[%clk 0:02:52.3]} 9... Be7 {[%clk
0:03:04.7]} 10. h3 {[%clk 0:02:47.5]} 10... Nbd7 {[%clk 0:03:05]} 11. Bf4 {[%clk
0:02:48.5]} 11... O-O {[%clk 0:03:04.8]} 12. Qe2 {[%clk 0:02:46.2]} 12... Qc7
{[%clk 0:03:05.6]} 13. Rad1 {[%clk 0:02:43.4]} 13... Rfe8 {[%clk 0:03:06.4]} 14.
Nh2 {[%clk 0:02:27]} 14... Bf8 {[%clk 0:03:02.5]} 15. Ng4 {[%clk 0:02:22.5]}
15... Nxg4 {[%clk 0:02:56.8]} 16. Qxg4 {[%clk 0:02:22.3]} 16... Nf6 {[%clk
0:02:58]} 17. Qh4 {[%clk 0:02:22.6]} 17... Qc6 {[%clk 0:02:46.5]} 18. d5 {[%clk
0:02:15.8]} 18... exd5 {[%clk 0:02:45.2]} 19. Nxd5 {[%clk 0:02:15.6]} 19...
Rxe1+ {[%clk 0:02:38.9]} 20. Rxe1 {[%clk 0:02:16.3]} 20... Qxd5 {[%clk
0:02:24.3]} 21. cxd5 {[%clk 0:02:16]} 21... Bxd5 {[%clk 0:02:26.2]} 22. Bg5
{[%clk 0:02:14.2]} 22... Re8 {[%clk 0:02:20.1]} 23. Rxe8 {[%clk 0:02:12.2]}
23... g6 {[%clk 0:02:17.3]} 24. Bxf6 {[%clk 0:02:10.4]} 24... Bc6 {[%clk
0:02:17.3]} 25. Rd8 {[%clk 0:02:04.2]} 1-0

[Event "*** Titled Tuesday 3|2 Blitz"]
[Site "Chess.com"]
[Date "2016.05.03"]
[Round "3"]
[White "platy3"]
[Black "rhungaski"]
[Result "1/2-1/2"]
[WhiteElo "2644"]
[BlackElo "2473"]
[TimeControl "180+2"]
[EndTime "11:31:09 PDT"]
[Termination "Game drawn by repetition"]

1. e4 {[%clk 0:03:01.9]} 1... e5 {[%clk 0:03:00.8]} 2. Nf3 {[%clk 0:03:02.7]}
2... Nc6 {[%clk 0:03:01.5]} 3. Bb5 {[%clk 0:03:03.6]} 3... a6 {[%clk 0:03:02.2]}
4. Ba4 {[%clk 0:03:04.8]} 4... d6 {[%clk 0:03:03.4]} 5. c3 {[%clk 0:03:05.8]}
5... Bd7 {[%clk 0:03:03.4]} 6. O-O {[%clk 0:03:06]} 6... Nf6 {[%clk 0:03:04.3]}
7. Re1 {[%clk 0:03:07]} 7... Be7 {[%clk 0:03:05.1]} 8. d4 {[%clk 0:03:08.2]}
8... O-O {[%clk 0:03:06]} 9. d5 {[%clk 0:03:06.4]} 9... Nb8 {[%clk 0:03:06.2]}
10. Bxd7 {[%clk 0:03:07.4]} 10... Nbxd7 {[%clk 0:03:07.2]} 11. c4 {[%clk
0:03:09]} 11... Ne8 {[%clk 0:03:04.4]} 12. Nc3 {[%clk 0:03:09.4]} 12... a5
{[%clk 0:02:59.7]} 13. b3 {[%clk 0:02:47.7]} 13... g6 {[%clk 0:02:58.1]} 14. Bh6
{[%clk 0:02:42.3]} 14... Ng7 {[%clk 0:02:59.3]} 15. a3 {[%clk 0:02:43.6]} 15...
f5 {[%clk 0:02:36.7]} 16. b4 {[%clk 0:02:42.3]} 16... Bf6 {[%clk 0:02:23.3]} 17.
Qd3 {[%clk 0:02:36.7]} 17... b6 {[%clk 0:02:19.2]} 18. Nb5 {[%clk 0:02:13]}
18... Rf7 {[%clk 0:02:14.5]} 19. Nc3 {[%clk 0:01:23.5]} 19... Ra7 {[%clk
0:02:00.3]} 20. Nb5 {[%clk 0:01:21.3]} 20... Ra8 {[%clk 0:02:01.4]} 21. Nc3
{[%clk 0:01:22.8]} 21... Ra7 {[%clk 0:02:02.3]} 22. Nb5 {[%clk 0:01:23.1]} 22...
Ra8 {[%clk 0:02:03.4]} 23. Nc3 {[%clk 0:01:24.4]} 1/2-1/2

[Event "*** Titled Tuesday 3|2 Blitz"]
[Site "Chess.com"]
[Date "2016.05.03"]
[Round "3"]
[White "chorejason"]
[Black "saraswathii"]
[Result "1-0"]
[WhiteElo "2070"]
[BlackElo "1964"]
[TimeControl "180+2"]
[EndTime "11:31:38 PDT"]
[Termination "chorejason won by resignation"]

1. e4 {[%clk 0:03:01.9]} 1... c5 {[%clk 0:02:56.9]} 2. Nf3 {[%clk 0:03:03]} 2...
Nc6 {[%clk 0:02:51.7]} 3. d4 {[%clk 0:03:04.3]} 3... cxd4 {[%clk 0:02:48.6]} 4.
Nxd4 {[%clk 0:03:06.2]} 4... Nf6 {[%clk 0:02:49]} 5. Nc3 {[%clk 0:03:07.5]} 5...
e6 {[%clk 0:02:49.5]} 6. Be2 {[%clk 0:03:07.1]} 6... Bb4 {[%clk 0:02:48.6]} 7.
Bf3 {[%clk 0:02:55.1]} 7... d5 {[%clk 0:02:42.7]} 8. Nxc6 {[%clk 0:02:50.9]}
8... bxc6 {[%clk 0:02:41.6]} 9. e5 {[%clk 0:02:45.8]} 9... Nd7 {[%clk
0:02:29.1]} 10. Qe2 {[%clk 0:02:46.2]} 10... Qc7 {[%clk 0:02:21.6]} 11. O-O
{[%clk 0:02:35.4]} 11... Qxe5 {[%clk 0:02:15.5]} 12. Be3 {[%clk 0:02:17.1]}
12... O-O {[%clk 0:02:03.1]} 13. Rad1 {[%clk 0:02:15.8]} 13... c5 {[%clk
0:01:37]} 14. Nxd5 {[%clk 0:02:15.8]} 14... exd5 {[%clk 0:01:34.9]} 15. Rxd5
{[%clk 0:02:16.4]} 15... Qe6 {[%clk 0:01:27.9]} 16. Rfd1 {[%clk 0:02:11.3]}
16... Ne5 {[%clk 0:01:18.5]} 17. Rd6 {[%clk 0:02:07.4]} 17... Nxf3+ {[%clk
0:01:00.6]} 18. Qxf3 {[%clk 0:02:07.9]} 18... Qe7 {[%clk 0:01:01.3]} 19. Qxa8
{[%clk 0:01:59.4]} 19... Bb7 {[%clk 0:00:53.7]} 20. Qxf8+ {[%clk 0:01:49.4]} 1-0

[Event "*** Titled Tuesday 3|2 Blitz"]
[Site "Chess.com"]
[Date "2016.05.03"]
[Round "3"]
[White "VSERGUEI"]
[Black "jk13"]
[Result "1-0"]
[WhiteElo "2459"]
[BlackElo "2400"]
[TimeControl "180+2"]
[EndTime "11:32:28 PDT"]
[Termination "VSERGUEI won by resignation"]

1. d4 {[%clk 0:03:00.6]} 1... Nf6 {[%clk 0:02:57.1]} 2. c4 {[%clk 0:03:00.6]}
2... e6 {[%clk 0:02:58.5]} 3. Nc3 {[%clk 0:03:00.3]} 3... Bb4 {[%clk 0:03:00.2]}
4. f3 {[%clk 0:03:00.9]} 4... c5 {[%clk 0:02:58.5]} 5. d5 {[%clk 0:03:01.5]}
5... b5 {[%clk 0:02:59.7]} 6. e4 {[%clk 0:03:01.8]} 6... bxc4 {[%clk 0:02:59.8]}
7. Bxc4 {[%clk 0:03:00.7]} 7... O-O {[%clk 0:02:58.7]} 8. Ne2 {[%clk 0:02:55]}
8... d6 {[%clk 0:02:57.4]} 9. O-O {[%clk 0:02:53]} 9... exd5 {[%clk 0:02:55.4]}
10. Nxd5 {[%clk 0:02:52.9]} 10... Nbd7 {[%clk 0:02:52.6]} 11. Nxb4 {[%clk
0:02:41.7]} 11... cxb4 {[%clk 0:02:54.5]} 12. Qxd6 {[%clk 0:02:42.4]} 12... Nb6
{[%clk 0:02:48.6]} 13. Qxd8 {[%clk 0:02:41.5]} 13... Rxd8 {[%clk 0:02:50.5]} 14.
Bb5 {[%clk 0:02:24.6]} 14... Be6 {[%clk 0:02:43.3]} 15. Nf4 {[%clk 0:02:06]}
15... Bc4 {[%clk 0:02:43.5]} 16. Bxc4 {[%clk 0:02:05.3]} 16... Nxc4 {[%clk
0:02:45.4]} 17. b3 {[%clk 0:02:06.3]} 17... Nd2 {[%clk 0:02:43]} 18. Rf2 {[%clk
0:01:50.8]} 18... Ndxe4 {[%clk 0:02:42.9]} 19. fxe4 {[%clk 0:01:50.9]} 19...
Nxe4 {[%clk 0:02:40.7]} 20. Rf1 {[%clk 0:01:49.8]} 20... Rac8 {[%clk 0:02:35.9]}
21. Be3 {[%clk 0:01:47.9]} 21... Rc2 {[%clk 0:02:36.6]} 22. Rad1 {[%clk
0:01:31.1]} 22... Rxd1 {[%clk 0:02:37.2]} 23. Rxd1 {[%clk 0:01:31.1]} 23... g5
{[%clk 0:02:39.1]} 24. Rd8+ {[%clk 0:01:02.3]} 24... Kg7 {[%clk 0:02:39.5]} 25.
Nh5+ {[%clk 0:01:03.1]} 25... Kg6 {[%clk 0:02:37.4]} 26. g4 {[%clk 0:01:03.3]}
26... f5 {[%clk 0:02:30.6]} 27. Rg8+ {[%clk 0:00:58.2]} 27... Kh6 {[%clk
0:02:24.9]} 28. Nf6 {[%clk 0:00:35.3]} 28... f4 {[%clk 0:02:17.5]} 29. Nxe4
{[%clk 0:00:32.6]} 29... fxe3 {[%clk 0:02:18.5]} 30. Ng3 {[%clk 0:00:32.7]} 1-0

[Event "*** Titled Tuesday 3|2 Blitz"]
[Site "Chess.com"]
[Date "2016.05.03"]
[Round "3"]
[White "Lupul_Cenusiu"]
[Black "Fariasov-inactive"]
[Result "1-0"]
[WhiteElo "2420"]
[BlackElo "2187"]
[TimeControl "180+2"]
[EndTime "11:32:30 PDT"]
[Termination "Lupul_Cenusiu won by resignation"]

1. d4 {[%clk 0:03:01.9]} 1... c5 {[%clk 0:03:00.8]} 2. d5 {[%clk 0:03:01.5]}
2... d6 {[%clk 0:03:02.2]} 3. e4 {[%clk 0:03:01.6]} 3... g6 {[%clk 0:03:03.6]}
4. c4 {[%clk 0:03:02.3]} 4... Bg7 {[%clk 0:03:04.9]} 5. Bd3 {[%clk 0:03:03.3]}
5... Nf6 {[%clk 0:03:05.9]} 6. h3 {[%clk 0:03:03.9]} 6... O-O {[%clk 0:03:06.7]}
7. Nf3 {[%clk 0:03:05]} 7... e6 {[%clk 0:03:08]} 8. O-O {[%clk 0:03:06.1]} 8...
exd5 {[%clk 0:03:09.2]} 9. cxd5 {[%clk 0:03:06.9]} 9... Na6 {[%clk 0:03:10.1]}
10. Re1 {[%clk 0:03:07.7]} 10... Nc7 {[%clk 0:03:10.7]} 11. Nc3 {[%clk 0:03:08]}
11... a6 {[%clk 0:03:10.7]} 12. a4 {[%clk 0:03:09]} 12... b6 {[%clk 0:03:12.1]}
13. Bf4 {[%clk 0:03:09.2]} 13... Rb8 {[%clk 0:03:11.6]} 14. Qd2 {[%clk
0:03:06.9]} 14... b5 {[%clk 0:03:10.1]} 15. Bh6 {[%clk 0:02:56.8]} 15... c4
{[%clk 0:03:07.3]} 16. Bf1 {[%clk 0:02:51.6]} 16... Re8 {[%clk 0:02:58.4]} 17.
Bxg7 {[%clk 0:02:51.8]} 17... Kxg7 {[%clk 0:02:59.3]} 18. Qd4 {[%clk 0:02:51]}
18... Kg8 {[%clk 0:02:45.6]} 19. axb5 {[%clk 0:02:40.1]} 19... axb5 {[%clk
0:02:46]} 20. Rad1 {[%clk 0:02:25.3]} 20... Bd7 {[%clk 0:02:42.9]} 21. e5 {[%clk
0:02:25.7]} 21... dxe5 {[%clk 0:02:43.6]} 22. Nxe5 {[%clk 0:02:25.7]} 22... b4
{[%clk 0:02:41.6]} 23. Ne4 {[%clk 0:02:23]} 23... Nxe4 {[%clk 0:02:40.4]} 24.
Rxe4 {[%clk 0:02:23.1]} 24... Bf5 {[%clk 0:02:38.5]} 25. Ree1 {[%clk 0:02:23.9]}
25... Bc2 {[%clk 0:02:06.9]} 26. Rd2 {[%clk 0:02:16.7]} 26... b3 {[%clk
0:01:57.5]} 27. Bxc4 {[%clk 0:02:13.1]} 27... Qf6 {[%clk 0:01:50.2]} 28. Re3
{[%clk 0:02:08.1]} 28... Nb5 {[%clk 0:01:38]} 29. Bxb5 {[%clk 0:01:58.3]} 29...
Rxb5 {[%clk 0:01:37.7]} 30. Nd7 {[%clk 0:01:53.4]} 30... Qxd4 {[%clk 0:01:24]}
31. Rxe8+ {[%clk 0:01:53.9]} 31... Kg7 {[%clk 0:01:25.5]} 32. Rxd4 {[%clk
0:01:55]} 32... Ra5 {[%clk 0:01:23.5]} 33. Ne5 {[%clk 0:01:50.8]} 33... Ra1+
{[%clk 0:01:21.6]} 34. Kh2 {[%clk 0:01:51.8]} 34... Ra2 {[%clk 0:01:21.9]} 35.
Nc4 {[%clk 0:01:52.3]} 35... h5 {[%clk 0:01:19.1]} 36. d6 {[%clk 0:01:53.2]}
36... Bf5 {[%clk 0:01:19.4]} 37. d7 {[%clk 0:01:53.5]} 1-0